[Event "*** Titled Tuesday Blitz"]
[Site "Chess.com"]
[Date "2020.05.12"]
[Round "2"]
[White "Koalaskakistis"]
[Black "tteshan"]
[Result "1-0"]
[WhiteElo "2450"]
[BlackElo "2218"]
[TimeControl "180+1"]
[EndTime "10:17:16 PDT"]
[Termination "Koalaskakistis won by resignation"]

1. f4 {[%clk 0:03:00.9]} 1... c5 {[%clk 0:02:58.2]} 2. Nf3 {[%clk 0:02:59.6]}
2... Nc6 {[%clk 0:02:58.3]} 3. g3 {[%clk 0:02:59.9]} 3... g6 {[%clk 0:02:58.3]}
4. Bg2 {[%clk 0:03:00.2]} 4... Bg7 {[%clk 0:02:58.7]} 5. O-O {[%clk 0:03:01.1]}
5... d5 {[%clk 0:02:58.8]} 6. d3 {[%clk 0:03:01]} 6... Nf6 {[%clk 0:02:56.8]} 7.
Nc3 {[%clk 0:02:55.9]} 7... O-O {[%clk 0:02:56.2]} 8. e4 {[%clk 0:02:55.2]} 8...
dxe4 {[%clk 0:02:42.2]} 9. dxe4 {[%clk 0:02:56.1]} 9... Bg4 {[%clk 0:02:32.5]}
10. h3 {[%clk 0:02:51.2]} 10... Bxf3 {[%clk 0:02:27.3]} 11. Qxf3 {[%clk
0:02:48.6]} 11... Nd4 {[%clk 0:02:24.3]} 12. Qf2 {[%clk 0:02:47]} 12... Qc7
{[%clk 0:02:00.5]} 13. Be3 {[%clk 0:02:39.4]} 13... Rfd8 {[%clk 0:01:57]} 14. e5
{[%clk 0:02:38.3]} 14... Ne8 {[%clk 0:01:56]} 15. Nd5 {[%clk 0:02:34]} 15... Qd7
{[%clk 0:01:43.1]} 16. c3 {[%clk 0:02:31.9]} 16... Ne6 {[%clk 0:01:24.3]} 17.
Rfd1 {[%clk 0:02:31.3]} 17... Qb5 {[%clk 0:01:11.7]} 18. Nxe7+ {[%clk
0:02:24.2]} 18... Kh8 {[%clk 0:01:10.1]} 19. Nd5 {[%clk 0:02:24.1]} 19... Rac8
{[%clk 0:01:05.2]} 20. Rd2 {[%clk 0:02:12.4]} 20... b6 {[%clk 0:01:03]} 21. Rad1
{[%clk 0:02:10.6]} 21... h5 {[%clk 0:00:52.9]} 22. Ne7 {[%clk 0:02:04.7]} 22...
Rxd2 {[%clk 0:00:49.2]} 23. Rxd2 {[%clk 0:02:00.9]} 23... Rc7 {[%clk 0:00:41.3]}
24. Nd5 {[%clk 0:01:57.8]} 24... Rd7 {[%clk 0:00:39.8]} 25. g4 {[%clk
0:01:44.2]} 25... N8c7 {[%clk 0:00:35.4]} 26. gxh5 {[%clk 0:01:21.6]} 26... Nxd5
{[%clk 0:00:33.1]} 27. Bxd5 {[%clk 0:01:08.5]} 27... gxh5 {[%clk 0:00:30.6]} 28.
f5 {[%clk 0:00:58.4]} 28... Nc7 {[%clk 0:00:26.4]} 29. c4 {[%clk 0:00:57.9]}
29... Qb4 {[%clk 0:00:25.2]} 30. f6 {[%clk 0:00:57.4]} 30... Bf8 {[%clk
0:00:24]} 31. Qf5 {[%clk 0:00:46.5]} 31... Nxd5 {[%clk 0:00:21.4]} 32. Qxh5+
{[%clk 0:00:46]} 1-0

[Event "*** Titled Tuesday Blitz"]
[Site "Chess.com"]
[Date "2020.05.12"]
[Round "2"]
[White "Hikaru"]
[Black "RATNAKARAN"]
[Result "1-0"]
[WhiteElo "3245"]
[BlackElo "2582"]
[TimeControl "180+1"]
[EndTime "10:17:17 PDT"]
[Termination "Hikaru won by resignation"]

1. Nf3 {[%clk 0:03:00.9]} 1... Nf6 {[%clk 0:02:59.5]} 2. b3 {[%clk 0:03:01]}
2... d5 {[%clk 0:02:59.2]} 3. Bb2 {[%clk 0:03:01]} 3... c6 {[%clk 0:02:59.6]} 4.
e3 {[%clk 0:03:00.8]} 4... Bg4 {[%clk 0:02:59.6]} 5. d4 {[%clk 0:03:00.4]} 5...
Nbd7 {[%clk 0:02:59.2]} 6. Nbd2 {[%clk 0:02:59]} 6... e6 {[%clk 0:02:59.3]} 7.
Bd3 {[%clk 0:02:58.7]} 7... Bd6 {[%clk 0:02:58.6]} 8. h3 {[%clk 0:02:59]} 8...
Bh5 {[%clk 0:02:58.2]} 9. c4 {[%clk 0:02:58.7]} 9... O-O {[%clk 0:02:56.4]} 10.
Qc2 {[%clk 0:02:58.6]} 10... Bg6 {[%clk 0:02:56.1]} 11. Bxg6 {[%clk 0:02:57.8]}
11... fxg6 {[%clk 0:02:50.9]} 12. O-O {[%clk 0:02:55.6]} 12... Rc8 {[%clk
0:02:48.4]} 13. e4 {[%clk 0:02:55.4]} 13... dxe4 {[%clk 0:02:47.3]} 14. Nxe4
{[%clk 0:02:56.3]} 14... Bb8 {[%clk 0:02:47.3]} 15. Neg5 {[%clk 0:02:52.9]}
15... Re8 {[%clk 0:02:47.6]} 16. Rfe1 {[%clk 0:02:51.7]} 16... Nf8 {[%clk
0:02:47.4]} 17. Rad1 {[%clk 0:02:51.8]} 17... h6 {[%clk 0:02:46.6]} 18. Ne4
{[%clk 0:02:51.2]} 18... g5 {[%clk 0:02:45.7]} 19. Nxf6+ {[%clk 0:02:45.8]}
19... gxf6 {[%clk 0:02:44.2]} 20. Qb1 {[%clk 0:02:40.2]} 20... Qc7 {[%clk
0:02:43]} 21. d5 {[%clk 0:02:38]} 21... e5 {[%clk 0:02:38.7]} 22. d6 {[%clk
0:02:35.3]} 22... Qf7 {[%clk 0:02:29.8]} 23. c5 {[%clk 0:02:35.1]} 23... Rcd8
{[%clk 0:02:24]} 24. b4 {[%clk 0:02:34.8]} 24... Re6 {[%clk 0:02:20.7]} 25. Nd2
{[%clk 0:02:30.6]} 25... f5 {[%clk 0:02:18.8]} 26. Rxe5 {[%clk 0:02:26.5]} 26...
b6 {[%clk 0:02:10.8]} 27. Rxf5 {[%clk 0:02:20.4]} 27... Qg6 {[%clk 0:01:57.7]}
28. Nf3 {[%clk 0:02:15.9]} 28... Nd7 {[%clk 0:01:44.1]} 29. Qd3 {[%clk
0:02:11.8]} 29... bxc5 {[%clk 0:01:43.2]} 30. bxc5 {[%clk 0:02:11]} 30... a5
{[%clk 0:01:34.1]} 31. Qd4 {[%clk 0:01:56.5]} 31... Kh7 {[%clk 0:01:31.3]} 32.
g4 {[%clk 0:01:53.9]} 32... Ba7 {[%clk 0:01:24.5]} 33. Ne5 {[%clk 0:01:32]}
33... Bxc5 {[%clk 0:01:14.2]} 34. Nxg6 {[%clk 0:01:22.8]} 34... Bxd4 {[%clk
0:01:13.3]} 35. Rxd4 {[%clk 0:01:21.2]} 35... Kxg6 {[%clk 0:01:12.7]} 36. Rxa5
{[%clk 0:01:21.8]} 36... c5 {[%clk 0:01:11.7]} 37. Rd2 {[%clk 0:01:15.4]} 37...
c4 {[%clk 0:01:11.7]} 38. Kg2 {[%clk 0:01:10.9]} 38... Nb6 {[%clk 0:01:06.9]}
39. Ra7 {[%clk 0:01:09.1]} 39... Rd7 {[%clk 0:01:04.1]} 40. Rxd7 {[%clk
0:01:08.6]} 40... Nxd7 {[%clk 0:01:05]} 41. a4 {[%clk 0:01:08.7]} 41... Kf7
{[%clk 0:01:00.3]} 42. a5 {[%clk 0:01:08.3]} 42... Re8 {[%clk 0:01:00.9]} 43.
Bc3 {[%clk 0:01:07.4]} 43... Ra8 {[%clk 0:01:00.1]} 44. Re2 {[%clk 0:01:07.5]}
44... Re8 {[%clk 0:00:54.1]} 45. Rxe8 {[%clk 0:00:51.4]} 45... Kxe8 {[%clk
0:00:55]} 46. a6 {[%clk 0:00:51.1]} 1-0

[Event "*** Titled Tuesday Blitz"]
[Site "Chess.com"]
[Date "2020.05.12"]
[Round "2"]
[White "WhiteCapital80"]
[Black "abykhovsky"]
[Result "0-1"]
[WhiteElo "2449"]
[BlackElo "2668"]
[TimeControl "180+1"]
[EndTime "10:17:18 PDT"]
[Termination "abykhovsky won by resignation"]

1. e4 {[%clk 0:03:00.9]} 1... c5 {[%clk 0:02:59.1]} 2. Nf3 {[%clk 0:03:00.7]}
2... e6 {[%clk 0:02:58.1]} 3. d4 {[%clk 0:03:00.5]} 3... cxd4 {[%clk 0:02:59]}
4. Nxd4 {[%clk 0:03:00.7]} 4... a6 {[%clk 0:02:59.4]} 5. Nc3 {[%clk 0:03:00.5]}
5... Qc7 {[%clk 0:02:58.7]} 6. Be2 {[%clk 0:03:00.3]} 6... Nf6 {[%clk
0:02:58.3]} 7. O-O {[%clk 0:02:59.8]} 7... d6 {[%clk 0:02:58.6]} 8. a4 {[%clk
0:02:59.1]} 8... b6 {[%clk 0:02:56.2]} 9. f4 {[%clk 0:02:58.1]} 9... Nbd7 {[%clk
0:02:55.5]} 10. Bf3 {[%clk 0:02:56]} 10... Bb7 {[%clk 0:02:55.9]} 11. Qe2 {[%clk
0:02:48.9]} 11... Be7 {[%clk 0:02:55]} 12. e5 {[%clk 0:02:40.9]} 12... dxe5
{[%clk 0:02:53.5]} 13. fxe5 {[%clk 0:02:29.2]} 13... Bc5 {[%clk 0:02:47.5]} 14.
Be3 {[%clk 0:02:25.2]} 14... Nxe5 {[%clk 0:02:43.9]} 15. Bxb7 {[%clk 0:02:17.6]}
15... Neg4 {[%clk 0:02:08.7]} 16. Rf4 {[%clk 0:01:41.2]} 16... Nxe3 {[%clk
0:01:43.1]} 17. Qxe3 {[%clk 0:00:59.5]} 17... Qxb7 {[%clk 0:01:39.3]} 18. b4
{[%clk 0:00:51.4]} 18... Be7 {[%clk 0:01:27.7]} 19. Re1 {[%clk 0:00:31.4]} 19...
O-O {[%clk 0:01:25.4]} 20. Nf5 {[%clk 0:00:31]} 20... Rac8 {[%clk 0:01:06.9]}
21. Nxe7+ {[%clk 0:00:26]} 21... Qxe7 {[%clk 0:01:07.8]} 22. Ne4 {[%clk
0:00:25.1]} 22... Nd5 {[%clk 0:01:05.4]} 23. Qf3 {[%clk 0:00:20.6]} 23... Nxf4
{[%clk 0:01:05.4]} 24. Qxf4 {[%clk 0:00:21]} 24... Rxc2 {[%clk 0:01:05.3]} 25.
Qg3 {[%clk 0:00:20.2]} 25... Qxb4 {[%clk 0:01:02.4]} 26. h3 {[%clk 0:00:20.3]}
26... Qxa4 {[%clk 0:00:57.4]} 27. Kh2 {[%clk 0:00:20.5]} 27... Qd4 {[%clk
0:00:56.9]} 28. Re3 {[%clk 0:00:18.5]} 28... b5 {[%clk 0:00:53]} 29. Nd6 {[%clk
0:00:18.4]} 29... Rc6 {[%clk 0:00:47.4]} 30. Ne4 {[%clk 0:00:16.9]} 30... f5
{[%clk 0:00:46]} 0-1

[Event "*** Titled Tuesday Blitz"]
[Site "Chess.com"]
[Date "2020.05.12"]
[Round "2"]
[White "m_ezat"]
[Black "Gandrade2"]
[Result "1-0"]
[WhiteElo "2589"]
[BlackElo "2060"]
[TimeControl "180+1"]
[EndTime "10:17:21 PDT"]
[Termination "m_ezat won by resignation"]

1. d4 {[%clk 0:02:59.4]} 1... d5 {[%clk 0:02:59.9]} 2. c4 {[%clk 0:02:59.3]}
2... e6 {[%clk 0:03:00.2]} 3. Nc3 {[%clk 0:02:59.4]} 3... a6 {[%clk 0:03:00.5]}
4. cxd5 {[%clk 0:02:57.9]} 4... exd5 {[%clk 0:03:00.4]} 5. Bf4 {[%clk 0:02:56]}
5... c6 {[%clk 0:03:00.7]} 6. e3 {[%clk 0:02:55.7]} 6... Bd6 {[%clk 0:03:01]} 7.
Bg3 {[%clk 0:02:53.7]} 7... Nf6 {[%clk 0:03:00.4]} 8. Bd3 {[%clk 0:02:53.3]}
8... O-O {[%clk 0:02:56]} 9. Nf3 {[%clk 0:02:53.2]} 9... Re8 {[%clk 0:02:45.3]}
10. Ne5 {[%clk 0:02:51]} 10... Nbd7 {[%clk 0:02:35.5]} 11. Nxf7 {[%clk
0:02:49.1]} 11... Kxf7 {[%clk 0:02:32.2]} 12. Bxd6 {[%clk 0:02:49]} 12... Nb6
{[%clk 0:02:27]} 13. Be5 {[%clk 0:02:43]} 13... Nc4 {[%clk 0:02:24.6]} 14. Bxc4
{[%clk 0:02:15.1]} 14... dxc4 {[%clk 0:02:25.5]} 15. Qf3 {[%clk 0:02:14.6]}
15... Kg8 {[%clk 0:02:13.2]} 16. Bxf6 {[%clk 0:02:14.2]} 16... gxf6 {[%clk
0:02:06.8]} 17. O-O {[%clk 0:02:06.8]} 17... Kf7 {[%clk 0:02:00.2]} 18. Ne4
{[%clk 0:02:01.6]} 18... Rg8 {[%clk 0:01:58]} 19. Qh5+ {[%clk 0:01:52]} 19...
Kg7 {[%clk 0:01:33.4]} 20. Rac1 {[%clk 0:01:50]} 20... Be6 {[%clk 0:01:25.9]}
21. Qh4 {[%clk 0:01:24.5]} 21... Bd5 {[%clk 0:01:18.8]} 22. Ng3 {[%clk
0:01:22.3]} 22... Kh8 {[%clk 0:01:13.4]} 23. Rfe1 {[%clk 0:01:16.8]} 23... Qe7
{[%clk 0:00:59.6]} 24. e4 {[%clk 0:01:07.9]} 24... Be6 {[%clk 0:01:00]} 25. d5
{[%clk 0:01:05.3]} 25... Rg4 {[%clk 0:00:56.7]} 26. Qh6 {[%clk 0:00:56.3]} 26...
Rg6 {[%clk 0:00:50.6]} 27. Qf4 {[%clk 0:00:54.1]} 27... Bf7 {[%clk 0:00:47.8]}
28. Nf5 {[%clk 0:00:46.7]} 28... Qf8 {[%clk 0:00:43.3]} 29. dxc6 {[%clk
0:00:40]} 29... bxc6 {[%clk 0:00:41.4]} 30. e5 {[%clk 0:00:40.2]} 30... fxe5
{[%clk 0:00:35.7]} 31. Qxe5+ {[%clk 0:00:39.7]} 31... Kg8 {[%clk 0:00:34.6]} 32.
Ne7+ {[%clk 0:00:39.7]} 1-0

[Event "*** Titled Tuesday Blitz"]
[Site "Chess.com"]
[Date "2020.05.12"]
[Round "2"]
[White "AttilaTurzo"]
[Black "StephenDedalus83"]
[Result "0-1"]
[WhiteElo "2485"]
[BlackElo "2720"]
[TimeControl "180+1"]
[EndTime "10:17:24 PDT"]
[Termination "StephenDedalus83 won by checkmate"]

1. e4 {[%clk 0:03:00.9]} 1... c5 {[%clk 0:02:59.7]} 2. Nf3 {[%clk 0:03:00.6]}
2... Nc6 {[%clk 0:02:59.7]} 3. d4 {[%clk 0:03:01.4]} 3... cxd4 {[%clk
0:03:00.2]} 4. Nxd4 {[%clk 0:03:02.3]} 4... Qc7 {[%clk 0:03:00.4]} 5. Nb5 {[%clk
0:03:00.3]} 5... Qb8 {[%clk 0:02:59.1]} 6. c4 {[%clk 0:03:00]} 6... Nf6 {[%clk
0:02:57.9]} 7. N5c3 {[%clk 0:02:57]} 7... b6 {[%clk 0:02:57.9]} 8. Be2 {[%clk
0:02:55.6]} 8... e6 {[%clk 0:02:55.8]} 9. O-O {[%clk 0:02:55.8]} 9... Bb7 {[%clk
0:02:55.4]} 10. f4 {[%clk 0:02:50.9]} 10... Bc5+ {[%clk 0:02:53.5]} 11. Kh1
{[%clk 0:02:50.6]} 11... h5 {[%clk 0:02:54.1]} 12. e5 {[%clk 0:02:35]} 12... Ng4
{[%clk 0:02:53.9]} 13. Bxg4 {[%clk 0:02:35.6]} 13... hxg4 {[%clk 0:02:52.3]} 14.
Qxg4 {[%clk 0:02:36.5]} 14... Ne7 {[%clk 0:02:49.6]} 15. Nd2 {[%clk 0:02:31.2]}
15... Nf5 {[%clk 0:02:36.5]} 16. Nde4 {[%clk 0:02:30.8]} 16... Qc7 {[%clk
0:02:13.9]} 17. Bd2 {[%clk 0:01:55.9]} 17... O-O-O {[%clk 0:02:12.4]} 18. Rae1
{[%clk 0:01:53.8]} 18... Rxh2+ {[%clk 0:01:34.2]} 19. Kxh2 {[%clk 0:01:51.2]}
19... Rh8+ {[%clk 0:01:34.4]} 20. Qh3 {[%clk 0:01:49.6]} 20... Rxh3+ {[%clk
0:01:31.4]} 21. gxh3 {[%clk 0:01:30.1]} 21... a6 {[%clk 0:01:25.1]} 22. b3
{[%clk 0:01:21.9]} 22... Be7 {[%clk 0:01:18.6]} 23. Re2 {[%clk 0:01:13.8]} 23...
Kb8 {[%clk 0:01:16.9]} 24. Be1 {[%clk 0:01:00.6]} 24... Qd8 {[%clk 0:01:10.6]}
25. Bf2 {[%clk 0:00:59.7]} 25... Bh4 {[%clk 0:01:03.7]} 26. Bg1 {[%clk
0:00:50.8]} 26... Bc6 {[%clk 0:01:02.8]} 27. b4 {[%clk 0:00:43.4]} 27... f6
{[%clk 0:00:53.8]} 28. a4 {[%clk 0:00:39.9]} 28... fxe5 {[%clk 0:00:52.6]} 29.
fxe5 {[%clk 0:00:40.8]} 29... g5 {[%clk 0:00:51.7]} 30. b5 {[%clk 0:00:39.6]}
30... Bb7 {[%clk 0:00:50.2]} 31. Rd1 {[%clk 0:00:36]} 31... axb5 {[%clk
0:00:46.6]} 32. axb5 {[%clk 0:00:34.2]} 32... g4 {[%clk 0:00:40.6]} 33. hxg4
{[%clk 0:00:33.6]} 33... Nh6 {[%clk 0:00:41.1]} 34. Kh3 {[%clk 0:00:33.1]} 34...
Qg8 {[%clk 0:00:38.7]} 35. Nf6 {[%clk 0:00:32.6]} 35... Bxf6 {[%clk 0:00:37.7]}
36. exf6 {[%clk 0:00:32.7]} 36... Qxg4+ {[%clk 0:00:37.5]} 37. Kh2 {[%clk
0:00:31.8]} 37... Qh4# {[%clk 0:00:37.5]} 0-1

[Event "*** Titled Tuesday Blitz"]
[Site "Chess.com"]
[Date "2020.05.12"]
[Round "2"]
[White "KingChess345"]
[Black "catalin009"]
[Result "1-0"]
[WhiteElo "2224"]
[BlackElo "2429"]
[TimeControl "180+1"]
[EndTime "10:17:24 PDT"]
[Termination "KingChess345 won by resignation"]

1. d4 {[%clk 0:03:00.9]} 1... g6 {[%clk 0:03:00.4]} 2. Nf3 {[%clk 0:03:01.5]}
2... Bg7 {[%clk 0:03:01.1]} 3. g3 {[%clk 0:03:02.4]} 3... d6 {[%clk 0:03:01.2]}
4. Bg2 {[%clk 0:03:03.3]} 4... Nd7 {[%clk 0:03:01.3]} 5. O-O {[%clk 0:03:04.2]}
5... e5 {[%clk 0:03:01.5]} 6. c4 {[%clk 0:03:04.8]} 6... Ne7 {[%clk 0:03:00.5]}
7. Nc3 {[%clk 0:03:05.1]} 7... O-O {[%clk 0:03:00.5]} 8. e4 {[%clk 0:03:02.7]}
8... exd4 {[%clk 0:02:58.9]} 9. Nxd4 {[%clk 0:03:02]} 9... Nc6 {[%clk
0:02:59.8]} 10. Be3 {[%clk 0:02:54.7]} 10... Re8 {[%clk 0:02:58.7]} 11. Qd2
{[%clk 0:02:48.9]} 11... Nde5 {[%clk 0:02:50.8]} 12. b3 {[%clk 0:02:48.1]} 12...
Ng4 {[%clk 0:02:51]} 13. Nxc6 {[%clk 0:02:45.6]} 13... bxc6 {[%clk 0:02:49.4]}
14. Bd4 {[%clk 0:02:46]} 14... Bxd4 {[%clk 0:02:40.5]} 15. Qxd4 {[%clk
0:02:46.9]} 15... Qf6 {[%clk 0:02:39.8]} 16. Rad1 {[%clk 0:02:43.3]} 16... Qxd4
{[%clk 0:02:30.3]} 17. Rxd4 {[%clk 0:02:44.2]} 17... Be6 {[%clk 0:02:28]} 18. h3
{[%clk 0:02:43.2]} 18... Nf6 {[%clk 0:02:24.2]} 19. f4 {[%clk 0:02:41.4]} 19...
a5 {[%clk 0:02:20.5]} 20. f5 {[%clk 0:02:33.8]} 20... gxf5 {[%clk 0:02:13.2]}
21. exf5 {[%clk 0:02:34.7]} 21... Bd7 {[%clk 0:02:13.5]} 22. g4 {[%clk
0:02:28.6]} 22... h6 {[%clk 0:02:12.3]} 23. h4 {[%clk 0:02:22.5]} 23... Re3
{[%clk 0:02:10.9]} 24. Rf3 {[%clk 0:02:20.8]} 24... Rae8 {[%clk 0:02:06.6]} 25.
Kf2 {[%clk 0:02:19.6]} 25... c5 {[%clk 0:02:04.2]} 26. Rdf4 {[%clk 0:02:10.4]}
26... Re1 {[%clk 0:01:51.1]} 27. g5 {[%clk 0:02:05.9]} 27... Nh7 {[%clk
0:01:40.3]} 28. Rg3 {[%clk 0:01:49.2]} 28... hxg5 {[%clk 0:01:36.7]} 29. hxg5
{[%clk 0:01:49.3]} 29... R8e5 {[%clk 0:01:33.5]} 30. Bd5 {[%clk 0:01:24.6]}
30... Kg7 {[%clk 0:00:56.5]} 31. f6+ {[%clk 0:00:57.8]} 31... Kf8 {[%clk
0:00:42.5]} 32. g6 {[%clk 0:00:53.8]} 32... fxg6 {[%clk 0:00:15.1]} 33. Rxg6
{[%clk 0:00:54.7]} 33... Rg5 {[%clk 0:00:15.1]} 34. Rxg5 {[%clk 0:00:45.5]}
34... Nxg5 {[%clk 0:00:16]} 35. Kxe1 {[%clk 0:00:45.2]} 1-0

[Event "*** Titled Tuesday Blitz"]
[Site "Chess.com"]
[Date "2020.05.12"]
[Round "2"]
[White "Riazantsev"]
[Black "grunbergmihai"]
[Result "1-0"]
[WhiteElo "2655"]
[BlackElo "2400"]
[TimeControl "180+1"]
[EndTime "10:17:25 PDT"]
[Termination "Riazantsev won by resignation"]

1. d4 {[%clk 0:03:00.9]} 1... f5 {[%clk 0:02:59.4]} 2. g3 {[%clk 0:03:00.4]}
2... Nf6 {[%clk 0:02:59.3]} 3. Bg2 {[%clk 0:03:00.8]} 3... g6 {[%clk 0:02:59.6]}
4. Nd2 {[%clk 0:03:01.1]} 4... d6 {[%clk 0:02:58.1]} 5. e4 {[%clk 0:03:00.9]}
5... Bg7 {[%clk 0:02:56.1]} 6. c3 {[%clk 0:02:58.8]} 6... c6 {[%clk 0:02:51.4]}
7. f4 {[%clk 0:02:57.9]} 7... fxe4 {[%clk 0:02:45.7]} 8. Nxe4 {[%clk 0:02:58]}
8... O-O {[%clk 0:02:42.8]} 9. Nxf6+ {[%clk 0:02:50.2]} 9... exf6 {[%clk
0:02:40.7]} 10. d5 {[%clk 0:02:47.7]} 10... Re8+ {[%clk 0:02:38.6]} 11. Kf1
{[%clk 0:02:37.3]} 11... c5 {[%clk 0:02:32.4]} 12. Nf3 {[%clk 0:02:31.4]} 12...
b6 {[%clk 0:02:21.4]} 13. Kg1 {[%clk 0:02:26.3]} 13... Ba6 {[%clk 0:02:19.1]}
14. h4 {[%clk 0:02:24.8]} 14... Qd7 {[%clk 0:01:50.2]} 15. h5 {[%clk 0:02:09.5]}
15... Be2 {[%clk 0:01:47.8]} 16. Qc2 {[%clk 0:01:52.3]} 16... Qg4 {[%clk
0:01:39.4]} 17. Kf2 {[%clk 0:01:51.9]} 17... gxh5 {[%clk 0:01:28]} 18. Be3
{[%clk 0:01:25.9]} 18... Bb5 {[%clk 0:01:21.6]} 19. Rh4 {[%clk 0:01:22.3]} 19...
Qg6 {[%clk 0:01:21.3]} 20. f5 {[%clk 0:01:22.8]} 20... Qf7 {[%clk 0:01:21.1]}
21. Rah1 {[%clk 0:01:23.2]} 21... Nd7 {[%clk 0:00:58.9]} 22. c4 {[%clk
0:01:23.5]} 22... Ba6 {[%clk 0:00:56.4]} 23. Rxh5 {[%clk 0:01:23]} 23... Ne5
{[%clk 0:00:56.1]} 24. Nxe5 {[%clk 0:01:19.5]} 24... Rxe5 {[%clk 0:00:55.8]} 25.
Bf4 {[%clk 0:01:15]} 25... Ree8 {[%clk 0:00:45.2]} 26. Rxh7 {[%clk 0:01:14.8]}
26... Qe7 {[%clk 0:00:40.8]} 27. Bf3 {[%clk 0:01:12.2]} 27... Rf8 {[%clk
0:00:37.1]} 28. g4 {[%clk 0:00:56.9]} 28... Rae8 {[%clk 0:00:35.9]} 29. Kg3
{[%clk 0:00:57.2]} 29... b5 {[%clk 0:00:32.2]} 30. Qh2 {[%clk 0:00:56.8]} 30...
Qd7 {[%clk 0:00:19.3]} 31. Qh5 {[%clk 0:00:50.6]} 31... bxc4 {[%clk 0:00:15.9]}
32. Rh8+ {[%clk 0:00:48.6]} 1-0

[Event "*** Titled Tuesday Blitz"]
[Site "Chess.com"]
[Date "2020.05.12"]
[Round "2"]
[White "Logman74"]
[Black "lIlIlIlI_lIl"]
[Result "1/2-1/2"]
[WhiteElo "2358"]
[BlackElo "2631"]
[TimeControl "180+1"]
[EndTime "10:17:25 PDT"]
[Termination "Game drawn by repetition"]

1. e4 {[%clk 0:03:00.9]} 1... c5 {[%clk 0:02:56.9]} 2. Nf3 {[%clk 0:03:00.5]}
2... e6 {[%clk 0:02:57.8]} 3. d4 {[%clk 0:03:00.4]} 3... cxd4 {[%clk 0:02:57.9]}
4. Nxd4 {[%clk 0:03:01]} 4... Nf6 {[%clk 0:02:58.2]} 5. Bd3 {[%clk 0:03:00.5]}
5... Nc6 {[%clk 0:02:57.8]} 6. Nxc6 {[%clk 0:03:00.3]} 6... bxc6 {[%clk
0:02:58.7]} 7. O-O {[%clk 0:03:00]} 7... e5 {[%clk 0:02:58.8]} 8. b3 {[%clk
0:02:55.5]} 8... Bc5 {[%clk 0:02:58.3]} 9. Bb2 {[%clk 0:02:54]} 9... d6 {[%clk
0:02:58.2]} 10. Nd2 {[%clk 0:02:51.4]} 10... O-O {[%clk 0:02:30.3]} 11. h3
{[%clk 0:02:45.5]} 11... a5 {[%clk 0:02:29.3]} 12. a3 {[%clk 0:02:42.5]} 12...
Be6 {[%clk 0:02:17]} 13. Qe2 {[%clk 0:02:40.2]} 13... Re8 {[%clk 0:02:15.5]} 14.
Kh2 {[%clk 0:02:37.8]} 14... g6 {[%clk 0:02:06.5]} 15. f4 {[%clk 0:02:30.4]}
15... Ng4+ {[%clk 0:02:05.2]} 16. Kh1 {[%clk 0:02:15.7]} 16... Qh4 {[%clk
0:01:57.2]} 17. f5 {[%clk 0:02:03.6]} 17... Nf2+ {[%clk 0:01:38.6]} 18. Rxf2
{[%clk 0:02:00.6]} 18... Qxf2 {[%clk 0:01:38.5]} 19. Qxf2 {[%clk 0:01:58.7]}
19... Bxf2 {[%clk 0:01:39.4]} 20. fxe6 {[%clk 0:01:58.5]} 20... fxe6 {[%clk
0:01:39.6]} 21. Nc4 {[%clk 0:01:56.2]} 21... Red8 {[%clk 0:01:38.7]} 22. Rf1
{[%clk 0:01:53.6]} 22... Bc5 {[%clk 0:01:33.4]} 23. a4 {[%clk 0:01:49.7]} 23...
Rf8 {[%clk 0:01:31]} 24. Rxf8+ {[%clk 0:01:45]} 24... Kxf8 {[%clk 0:01:31.9]}
25. g4 {[%clk 0:01:43.4]} 25... Ke7 {[%clk 0:01:30.8]} 26. Bc3 {[%clk
0:01:42.4]} 26... Bd4 {[%clk 0:01:27.1]} 27. Bxd4 {[%clk 0:01:31]} 27... exd4
{[%clk 0:01:28]} 28. e5 {[%clk 0:01:27.6]} 28... d5 {[%clk 0:01:26.1]} 29. Nd2
{[%clk 0:01:24.4]} 29... c5 {[%clk 0:01:25.9]} 30. Kg2 {[%clk 0:01:23.9]} 30...
Rf8 {[%clk 0:01:22.4]} 31. Kg3 {[%clk 0:01:18.7]} 31... Rc8 {[%clk 0:01:09.2]}
32. Bb5 {[%clk 0:01:16.5]} 32... Rf8 {[%clk 0:01:05.6]} 33. Nf3 {[%clk
0:01:14.5]} 33... h6 {[%clk 0:00:58.5]} 34. h4 {[%clk 0:01:13.7]} 34... Kf7
{[%clk 0:00:54.5]} 35. Bd3 {[%clk 0:01:08.7]} 35... Rc8 {[%clk 0:00:52.6]} 36.
Nd2 {[%clk 0:01:06.6]} 36... Kg7 {[%clk 0:00:50.2]} 37. Bb5 {[%clk 0:01:05]}
37... Rc7 {[%clk 0:00:47.2]} 38. Nf3 {[%clk 0:01:00.7]} 38... Kf7 {[%clk
0:00:33.2]} 39. Nd2 {[%clk 0:00:59.5]} 39... Kg7 {[%clk 0:00:32.8]} 40. Nf3
{[%clk 0:00:56.9]} 40... Kf7 {[%clk 0:00:32.6]} 41. Nd2 {[%clk 0:00:53.3]} 41...
Kg7 {[%clk 0:00:32.4]} 1/2-1/2

[Event "*** Titled Tuesday Blitz"]
[Site "Chess.com"]
[Date "2020.05.12"]
[Round "2"]
[White "VerdeNotte"]
[Black "Koksik_13"]
[Result "1-0"]
[WhiteElo "2877"]
[BlackElo "2551"]
[TimeControl "180+1"]
[EndTime "10:17:26 PDT"]
[Termination "VerdeNotte won by checkmate"]

1. e4 {[%clk 0:03:00.9]} 1... e6 {[%clk 0:02:55]} 2. d4 {[%clk 0:03:00.5]} 2...
d5 {[%clk 0:02:55.3]} 3. Nd2 {[%clk 0:03:00]} 3... Nf6 {[%clk 0:02:55.2]} 4. e5
{[%clk 0:03:00.1]} 4... Nfd7 {[%clk 0:02:55.5]} 5. Bd3 {[%clk 0:03:00.8]} 5...
c5 {[%clk 0:02:55.7]} 6. c3 {[%clk 0:03:01.4]} 6... Nc6 {[%clk 0:02:56.1]} 7.
Ngf3 {[%clk 0:03:01.6]} 7... cxd4 {[%clk 0:02:55.7]} 8. cxd4 {[%clk 0:03:01.6]}
8... f6 {[%clk 0:02:55.5]} 9. O-O {[%clk 0:02:53.5]} 9... fxe5 {[%clk
0:02:54.4]} 10. Nxe5 {[%clk 0:02:51.6]} 10... Ndxe5 {[%clk 0:02:54.4]} 11. dxe5
{[%clk 0:02:51.6]} 11... Nxe5 {[%clk 0:02:54.6]} 12. Qh5+ {[%clk 0:02:51.4]}
12... Nf7 {[%clk 0:02:54.6]} 13. Re1 {[%clk 0:02:46.5]} 13... g6 {[%clk
0:02:54.3]} 14. Bb5+ {[%clk 0:02:43.5]} 14... Bd7 {[%clk 0:02:38.6]} 15. Rxe6+
{[%clk 0:02:41.8]} 15... Be7 {[%clk 0:02:38.9]} 16. Qxd5 {[%clk 0:02:36]} 16...
a6 {[%clk 0:02:31.1]} 17. Bxd7+ {[%clk 0:01:49.9]} 17... Qxd7 {[%clk 0:02:32]}
18. Ne4 {[%clk 0:01:43.7]} 18... O-O-O {[%clk 0:02:05.9]} 19. Qc4+ {[%clk
0:01:37.3]} 19... Kb8 {[%clk 0:02:03.5]} 20. Bf4+ {[%clk 0:01:35.4]} 20... Ka8
{[%clk 0:02:03.6]} 21. Rb6 {[%clk 0:01:12.4]} 21... Rhf8 {[%clk 0:01:08.6]} 22.
h3 {[%clk 0:01:10.1]} 22... g5 {[%clk 0:01:06.6]} 23. Bc7 {[%clk 0:01:06.7]}
23... Qd4 {[%clk 0:00:49.5]} 24. Qe6 {[%clk 0:00:46.7]} 24... Rd7 {[%clk
0:00:22.2]} 25. Rxa6+ {[%clk 0:00:42.6]} 25... bxa6 {[%clk 0:00:21.3]} 26. Qxa6+
{[%clk 0:00:41.8]} 26... Qa7 {[%clk 0:00:22.2]} 27. Qc6+ {[%clk 0:00:41.9]}
27... Qb7 {[%clk 0:00:23.1]} 28. Qa4+ {[%clk 0:00:41.5]} 28... Qa7 {[%clk
0:00:21.5]} 29. Qxd7 {[%clk 0:00:38.2]} 29... Bd8 {[%clk 0:00:13.8]} 30. Qc8+
{[%clk 0:00:37.7]} 30... Qb8 {[%clk 0:00:13.2]} 31. Qxb8# {[%clk 0:00:38.6]} 1-0